bitfinex/quotes_BTCUSD_20250119
["timestamp","ask_amount","ask_price","bid_price","bid_amount"]
[1737328783679,0.15410341,100590.0,100570.0,0.144731]
[1737328783680,0.35294341,100590.0,100570.0,0.144731]
[1737328783870,0.72915741,100590.0,100570.0,0.144732]
[1737328784086,0.19493026,100580.0,100570.0,0.04545105]
[1737328784213,0.05368964,100570.0,100550.0,0.2993444]
[1737328784414,0.099456,100550.0,100530.0,0.298402]
[1737328784637,0.099453,100550.0,100530.0,0.42297994]
[1737328784837,0.298359,100550.0,100530.0,0.03006445]
[1737328785091,0.298359,100550.0,100530.0,0.13053003]
[1737328785092,0.298366,100550.0,100530.0,0.13053003]
[1737328785287,0.099462,100540.0,100520.0,0.10172348]
[1737328785448,0.099468,100540.0,100530.0,0.023]
[1737328785651,0.099472,100530.0,100520.0,0.00535319]
[1737328785852,0.2984,100540.0,100520.0,0.39930444]
[1737328786051,0.09947,100540.0,100520.0,0.39930444]
[1737328786447,0.55098264,100550.0,100530.0,0.10046566]
[1737328786646,0.34711613,100550.0,100520.0,0.00585219]
[1737328786778,0.34714113,100540.0,100520.0,0.00585219]
[1737328786977,0.27883454,100530.0,100520.0,0.00274148]
[1737328787162,0.77235426,100530.0,100520.0,0.00274148]
[1737328787359,0.399482,100520.0,100510.0,0.00013043]
[1737328787615,0.199492,100510.0,100500.0,1.71943488]
[1737328787817,0.249542,100460.0,100450.0,0.01432882]
[1737328788055,0.099581,100420.0,100410.0,4.148e-05]
[1737328788237,0.25289364,100400.0,100370.0,0.1275]
[1737328788557,0.25287364,100410.0,100380.0,0.44985215]
[1737328788688,0.49798,100410.0,100380.0,0.43240464]
[1737328788879,0.35247264,100410.0,100380.0,0.28240464]
[1737328789095,0.05368964,100420.0,100390.0,0.199223]
[1737328789293,0.00049836,100420.0,100390.0,0.24640675]
[1737328789497,0.05368964,100410.0,100390.0,0.09961]
[1737328789694,0.05368964,100410.0,100390.0,0.10060704]
[1737328789900,0.20057267,100420.0,100400.0,0.000996]
[1737328789901,0.00049836,100420.0,100400.0,0.000996]
[1737328790119,0.00049836,100420.0,100410.0,0.24438854]
[1737328790326,0.05368964,100450.0,100420.0,0.023]
[1737328790552,0.25283464,100430.0,100410.0,0.1276496]
[1737328790809,0.25276818,100420.0,100410.0,0.1276496]
[1737328791141,0.15327064,100420.0,100410.0,0.1276496]
[1737328791357,0.05368964,100430.0,100410.0,0.2272346]
[1737328791786,0.05368964,100430.0,100420.0,0.023]
[1737328791953,0.34988264,100440.0,100420.0,0.023]
[1737328792159,0.55148664,100450.0,100420.0,0.321741]
[1737328792357,0.05468341,100440.0,100420.0,0.199162]
[1737328792580,0.25375695,100430.0,100410.0,0.1276496]
[1737328792777,0.35341641,100430.0,100410.0,0.1276496]
[1737328793002,0.15325364,100440.0,100420.0,0.099581]
[1737328793221,0.05368964,100460.0,100440.0,0.122561]
[1737328793484,0.35225664,100480.0,100460.0,0.023]
[1737328793689,0.05368964,100510.0,100480.0,0.222028]
[1737328793921,0.05368964,100510.0,100470.0,0.18049292]
[1737328793922,0.298439,100530.0,100500.0,0.099502]
[1737328794123,0.05368964,100530.0,100510.0,0.247583]
[1737328794296,0.24228523,100550.0,100520.0,0.198959]
[1737328794508,0.00090762,100550.0,100540.0,0.099462]
[1737328794863,0.00090762,100550.0,100540.0,0.12345661]
[1737328794864,0.00140659,100550.0,100540.0,0.12345661]
[1737328795069,0.10085959,100550.0,100540.0,0.023]
[1737328795291,0.44272251,100550.0,100530.0,0.08]
[1737328795602,0.19995331,100540.0,100530.0,0.08]
[1737328795771,0.099482,100520.0,100510.0,0.0486]
[1737328795997,0.24242892,100520.0,100510.0,0.0486]
[1737328796129,0.19897954,100520.0,100510.0,0.0486]
[1737328796339,0.19997331,100520.0,100510.0,0.0486]
[1737328796561,0.24242892,100520.0,100510.0,0.0486]
[1737328796885,0.14193761,100520.0,100510.0,0.0486]
[1737328797042,0.099482,100520.0,100510.0,0.0486]
[1737328797243,0.01555107,100530.0,100510.0,0.1858988]
[1737328797584,0.34087561,100530.0,100510.0,0.0864098]
[1737328797788,0.34085161,100540.0,100520.0,0.099481]
[1737328797996,0.298396,100540.0,100520.0,0.089081]
[1737328798325,0.29977359,100550.0,100520.0,0.29944923]
[1737328798532,0.00140659,100550.0,100530.0,0.29943617]
[1737328798718,0.099462,100540.0,100520.0,0.099478]
[1737328798928,0.00140659,100550.0,100530.0,0.19896954]
[1737328799130,0.198925,100540.0,100510.0,0.12095419]
[1737328799320,0.00140659,100550.0,100530.0,0.099467]
[1737328799467,0.099463,100540.0,100520.0,0.19897954]
[1737328799664,0.099467,100540.0,100520.0,0.19997419]
[1737328799862,0.298393,100540.0,100530.0,0.023]
[1737328800121,0.099482,100520.0,100510.0,0.0486]
[1737328800319,0.14193761,100520.0,100510.0,0.0486]
[1737328800556,0.24242892,100520.0,100510.0,0.0486]
[1737328800672,0.24143515,100520.0,100510.0,0.0486]
[1737328800872,0.04245561,100510.0,100490.0,0.08]
[1737328801079,0.34999331,100500.0,100490.0,0.08]
[1737328801331,0.14195761,100500.0,100490.0,0.08]
[1737328801588,0.29849,100510.0,100490.0,0.37952704]
[1737328801717,0.099497,100510.0,100500.0,0.023]
[1737328801928,0.099492,100510.0,100500.0,0.0433503]
[1737328802255,0.29844,100530.0,100510.0,0.099491]
[1737328802638,0.298435,100530.0,100520.0,0.023]
[1737328802833,0.298436,100530.0,100510.0,0.29946876]
[1737328802957,0.099482,100520.0,100510.0,0.12348576]
[1737328803155,0.44033861,100540.0,100520.0,0.023]
[1737328803400,0.39789854,100540.0,100530.0,0.0458]
[1737328803578,0.69789854,100540.0,100530.0,0.0458]
[1737328803781,0.14194761,100510.0,100500.0,0.0476496]
[1737328803983,0.099522,100480.0,100470.0,0.0475]
[1737328804200,0.24261844,100480.0,100470.0,0.0475]
[1737328804399,0.24162467,100480.0,100470.0,0.0475]
[1737328804600,0.14212713,100480.0,100470.0,0.0475]
[1737328804931,0.14212713,100480.0,100470.0,0.24752486]
[1737328804932,0.00014952,100480.0,100470.0,0.24752486]
[1737328805131,0.00014952,100480.0,100470.0,0.30479337]
[1737328805447,0.00014952,100480.0,100470.0,0.32779337]
[1737328805650,0.09967152,100480.0,100470.0,0.12876383]
[1737328805855,0.09967152,100480.0,100470.0,0.0714952]
[1737328805988,0.00014952,100480.0,100470.0,0.27052474]
[1737328806172,0.00014952,100480.0,100470.0,0.26952954]
[1737328806368,0.00014952,100480.0,100470.0,0.16999754]
[1737328806625,0.00014952,100480.0,100470.0,0.1709927]
[1737328806823,0.199012,100500.0,100480.0,0.122517]
[1737328806824,0.298518,100500.0,100480.0,0.122517]
[1737328807000,0.198967,100520.0,100500.0,0.023]
[1737328807331,0.00014991,100520.0,100510.0,0.3452844]
[1737328807549,0.19982662,100550.0,100520.0,0.023]
[1737328807751,0.099462,100540.0,100530.0,0.10049211]
[1737328807979,0.099462,100540.0,100530.0,0.04564615]
[1737328808158,0.397906,100530.0,100510.0,0.1223]
[1737328808363,0.099482,100520.0,100510.0,0.1223]
[1737328808633,0.099482,100520.0,100480.0,0.1314]
[1737328808634,0.099512,100490.0,100480.0,0.1314]
[1737328809003,0.14296138,100490.0,100480.0,0.1314]
[1737328809216,0.099512,100490.0,100480.0,0.1314]
[1737328809451,0.099512,100490.0,100480.0,0.24403754]
[1737328809695,0.099512,100490.0,100480.0,0.24503754]
[1737328809874,0.099512,100490.0,100480.0,0.14554]
[1737328810117,0.20000331,100490.0,100480.0,0.13254991]
[1737328810345,0.14296138,100490.0,100480.0,0.13254991]
[1737328810528,0.099512,100490.0,100480.0,0.13254991]
[1737328810867,0.099512,100490.0,100480.0,0.15554991]
[1737328811068,0.14196761,100490.0,100480.0,0.13254991]
[1737328811475,0.19900954,100490.0,100480.0,0.13254991]
[1737328811667,0.34900954,100490.0,100480.0,0.13254991]
[1737328811874,0.49900954,100490.0,100480.0,0.00114991]
[1737328812093,0.34900954,100490.0,100480.0,0.00114991]
[1737328812411,0.34900954,100490.0,100480.0,9.1e-07]
[1737328812612,0.49900954,100490.0,100480.0,9.1e-07]
[1737328812837,0.34900954,100490.0,100480.0,9.1e-07]
[1737328813192,0.44900954,100490.0,100480.0,9.1e-07]
[1737328813400,0.099561,100440.0,100430.0,0.00665843]
[1737328813619,0.59653308,100440.0,100430.0,0.00680795]
[1737328813821,0.67742731,100440.0,100430.0,0.00680795]
[1737328814237,0.67742731,100440.0,100430.0,0.00058172]
[1737328814557,0.34905854,100440.0,100430.0,0.00058172]
[1737328814696,0.14201661,100440.0,100430.0,0.00058172]
[1737328815333,0.099561,100440.0,100430.0,0.00058172]
[1737328815533,0.099561,100440.0,100430.0,0.02358172]
[1737328815752,0.099561,100440.0,100430.0,0.03962509]
[1737328815910,0.099561,100440.0,100430.0,0.13912263]
[1737328816112,0.497794,100450.0,100430.0,0.29623802]
[1737328816315,0.298674,100450.0,100440.0,0.10049302]
[1737328816592,0.099561,100440.0,100430.0,0.00058172]
[1737328816801,0.10055477,100440.0,100430.0,0.00058172]
[1737328816971,0.596912,100450.0,100430.0,0.10107487]
[1737328817176,0.099561,100440.0,100430.0,0.10107487]
[1737328817582,0.24149661,100490.0,100450.0,0.05754439]
[1737328817781,0.298579,100480.0,100470.0,0.1248]
[1737328817985,0.099522,100480.0,100470.0,0.25258125]
[1737328818342,0.099522,100480.0,100470.0,0.1248]
[1737328818539,0.099522,100480.0,100470.0,0.132817]
[1737328818673,0.50001331,100480.0,100470.0,0.008017]
[1737328818872,0.47201954,100480.0,100470.0,1e-06]
[1737328819100,0.37201954,100480.0,100470.0,1e-06]
[1737328819346,0.47151708,100480.0,100470.0,1e-06]
[1737328819567,0.36459508,100480.0,100440.0,0.0494]
[1737328819775,0.399552,100450.0,100440.0,5.2e-07]
[1737328819977,0.249561,100440.0,100430.0,7.2e-07]
[1737328820180,0.52742731,100440.0,100430.0,7.2e-07]
[1737328820385,0.62692485,100440.0,100430.0,7.2e-07]
[1737328820558,0.37742731,100440.0,100430.0,7.2e-07]
[1737328820791,0.52742731,100440.0,100430.0,7.2e-07]
[1737328820965,0.67742731,100440.0,100430.0,7.2e-07]
[1737328821165,0.099561,100440.0,100430.0,7.2e-07]
[1737328821381,0.14201661,100440.0,100430.0,7.2e-07]
[1737328821714,0.47228531,100440.0,100430.0,7.2e-07]
[1737328822067,0.37742731,100440.0,100430.0,7.2e-07]
[1737328822249,0.14201661,100440.0,100430.0,7.2e-07]
[1737328822445,0.14301038,100440.0,100430.0,7.2e-07]
[1737328822995,0.099561,100440.0,100430.0,7.2e-07]
[1737328823213,0.49794466,100450.0,100430.0,0.19906826]
[1737328823428,0.19926566,100450.0,100430.0,0.1461696]
[1737328823592,0.00014966,100450.0,100430.0,0.1004938]
[1737328823799,0.199044,100480.0,100450.0,0.15708839]
[1737328824037,0.099552,100450.0,100440.0,0.1225]
[1737328824469,0.47037638,100450.0,100440.0,0.1225]
[1737328824681,0.44201661,100440.0,100430.0,0.00015038]
[1737328824896,0.44855608,100440.0,100430.0,0.00015038]
[1737328825106,0.49905854,100440.0,100430.0,0.00015038]
[1737328825342,0.59905854,100440.0,100430.0,0.00015038]
[1737328825552,0.099581,100420.0,100410.0,0.1229322]
[1737328825961,0.20007231,100420.0,100410.0,0.1229322]
[1737328826167,0.19907854,100420.0,100410.0,0.1229322]
[1737328826374,0.099581,100420.0,100410.0,0.1229322]
[1737328826579,0.14203661,100420.0,100410.0,0.1229322]
[1737328826780,0.099621,100380.0,100370.0,0.0467]
[1737328827009,0.15,100390.0,100370.0,0.14619754]
[1737328827218,0.349223,100390.0,100380.0,0.00099608]
[1737328827421,0.448834,100390.0,100380.0,0.00099608]
[1737328827599,0.298834,100390.0,100380.0,0.00099608]
[1737328827799,0.099621,100380.0,100370.0,0.14619754]
[1737328828006,0.00014966,100380.0,100370.0,0.16081729]
[1737328828209,0.29878,100410.0,100370.0,0.36006529]
[1737328828372,0.298811,100400.0,100380.0,0.10049345]
[1737328828764,0.498026,100400.0,100380.0,0.10049345]
[1737328828962,0.099611,100390.0,100380.0,0.10049345]
[1737328829197,0.448784,100410.0,100380.0,0.41562937]
[1737328829324,0.448784,100410.0,100380.0,0.11577146]
[1737328829325,0.099611,100390.0,100380.0,0.11577146]
[1737328829755,0.398434,100400.0,100380.0,0.19966751]
[1737328829956,0.099611,100390.0,100380.0,0.083896]
[1737328830157,0.35060477,100390.0,100380.0,0.0829]
[1737328830361,0.349621,100380.0,100370.0,0.04762596]
[1737328830936,0.249621,100380.0,100370.0,0.04762596]
[1737328831389,0.349621,100380.0,100370.0,0.04762596]
[1737328831899,0.25171733,100380.0,100370.0,0.04762596]
[1737328832099,0.349621,100380.0,100370.0,0.04762596]
[1737328832466,0.249621,100380.0,100370.0,0.04762596]
[1737328832804,0.099621,100380.0,100370.0,0.1471235]
[1737328833010,0.099621,100380.0,100370.0,0.16193548]
[1737328833220,0.099621,100380.0,100370.0,0.04262596]
[1737328833432,0.35843018,100380.0,100370.0,0.04262596]
[1737328833874,0.25843018,100380.0,100370.0,0.04262596]
[1737328834076,0.25,100410.0,100370.0,0.1421235]
[1737328834237,0.448857,100390.0,100380.0,0.10049357]
[1737328834452,0.35804718,100390.0,100370.0,0.04362203]
[1737328834820,0.099608,100400.0,100380.0,0.39934362]
[1737328834932,0.349184,100410.0,100390.0,0.0782]
[1737328835138,0.20001297,100450.0,100400.0,0.1004934]
[1737328835334,0.55893692,100450.0,100410.0,0.09949754]
[1737328835539,0.08307017,100470.0,100460.0,0.099542]
[1737328835766,0.08307017,100470.0,100460.0,0.30433467]
[1737328835990,0.29074561,100480.0,100470.0,0.099532]
[1737328836198,0.08273038,100490.0,100470.0,0.17079259]
[1737328836444,0.20767544,100510.0,100490.0,0.0813]
[1737328836751,0.00090678,100520.0,100510.0,0.122492]
[1737328836966,0.28126947,100550.0,100540.0,0.099462]
[1737328837096,0.00089839,100560.0,100550.0,0.099453]
[1737328837278,0.05000974,100620.0,100570.0,0.099429]
[1737328837279,0.249413,100600.0,100570.0,0.099429]
[1737328837485,0.249413,100600.0,100550.0,0.099453]
[1737328837486,0.00050083,100560.0,100550.0,0.099453]
[1737328837988,0.00050083,100560.0,100550.0,0.19895054]
[1737328838253,0.448843,100620.0,100590.0,0.099412]
[1737328838383,0.00021029,100620.0,100610.0,0.099393]
[1737328838588,0.00021029,100620.0,100610.0,0.19889054]
[1737328839651,0.09959329,100620.0,100610.0,0.09949754]
[1737328839877,0.00021029,100620.0,100610.0,0.09949754]
[1737328840234,0.00021029,100620.0,100610.0,0.19889054]
[1737328840414,0.01589335,100630.0,100620.0,0.099383]
[1737328840617,0.00090678,100640.0,100630.0,0.099373]
[1737328840842,0.00090825,100660.0,100650.0,0.099354]
[1737328841006,0.02078452,100710.0,100670.0,0.198668]
[1737328841212,0.02078452,100710.0,100700.0,0.099304]
[1737328841213,0.02128392,100710.0,100700.0,0.099304]
[1737328841518,0.02128392,100710.0,100700.0,0.10049036]
[1737328841735,0.12057892,100710.0,100700.0,0.09949754]
[1737328841935,0.12057892,100710.0,100690.0,0.198621]
[1737328841936,0.12128392,100710.0,100690.0,0.198621]
[1737328842140,0.02128392,100710.0,100700.0,0.19979452]
[1737328842340,0.0159028,100730.0,100720.0,0.249285]
[1737328842560,0.01605252,100730.0,100720.0,0.34878254]
[1737328842786,0.0009072,100750.0,100740.0,0.099265]
[1737328842987,0.0009072,100750.0,100740.0,0.19975477]
[1737328843296,0.099255,100750.0,100740.0,0.09949754]
[1737328843625,0.198511,100750.0,100720.0,0.00099241]
[1737328843878,0.198511,100750.0,100730.0,0.09949754]
[1737328843879,0.29781,100740.0,100730.0,0.09949754]
[1737328844057,0.1,100740.0,100730.0,0.099275]
[1737328844342,6e-05,100760.0,100750.0,0.099255]
[1737328844682,0.00860364,100780.0,100760.0,0.198482]
[1737328844885,0.00875328,100780.0,100770.0,0.10048963]
[1737328845329,0.45722428,100780.0,100730.0,0.44214013]
[1737328845508,0.198477,100770.0,100740.0,0.09949754]
[1737328845657,0.448477,100770.0,100740.0,0.09949754]
[1737328845860,0.1,100740.0,100700.0,0.198591]
[1737328846065,0.1,100740.0,100710.0,0.1]
[1737328846066,0.09929,100720.0,100710.0,0.1]
[1737328846265,0.547861,100720.0,100710.0,0.1]
[1737328846496,0.49735854,100720.0,100710.0,0.1]
[1737328846706,0.54735854,100720.0,100710.0,0.1]
[1737328847108,0.397861,100720.0,100710.0,0.1]
[1737328847276,0.397861,100720.0,100710.0,0.19964726]
[1737328847277,0.24929,100720.0,100710.0,0.19964726]
[1737328847471,0.099285,100720.0,100710.0,0.19964726]
[1737328847679,0.44852,100750.0,100710.0,0.39922902]
[1737328847907,0.297799,100740.0,100720.0,0.19977306]
[1737328848112,0.31326214,100760.0,100720.0,0.29906006]
[1737328848312,0.16551614,100760.0,100730.0,0.099271]
[1737328848548,0.198511,100750.0,100730.0,0.09949754]
[1737328848749,0.099256,100750.0,100740.0,0.09949754]
[1737328848950,0.099247,100760.0,100740.0,0.09949754]
[1737328849305,0.5553086,100790.0,100750.0,0.198509]
[1737328849506,0.5553086,100790.0,100770.0,0.2977]
[1737328849507,0.00433586,100790.0,100770.0,0.2977]
[1737328849713,0.1155152,100800.0,100780.0,0.09949754]
[1737328849910,0.00090594,100830.0,100810.0,0.099192]
[1737328850231,0.00090594,100830.0,100820.0,0.09949754]
[1737328850560,0.10058125,100830.0,100820.0,0.09949754]
[1737328850765,0.10058125,100830.0,100820.0,0.10048917]
[1737328850902,0.10058125,100830.0,100780.0,0.348435]
[1737328850903,0.099187,100820.0,100780.0,0.348435]
[1737328851096,0.099206,100800.0,100790.0,0.10048932]
[1737328851297,0.397664,100790.0,100770.0,0.01]
[1737328851495,0.29763,100800.0,100780.0,0.19971468]
[1737328851720,0.09921,100800.0,100780.0,0.39816368]
[1737328851913,0.19927594,100830.0,100800.0,0.099201]
[1737328852125,0.349186,100820.0,100810.0,0.08925497]
[1737328852326,0.29763,100800.0,100770.0,0.307697]
[1737328852640,0.29763,100800.0,100780.0,0.09949754]
[1737328852641,0.099216,100790.0,100780.0,0.09949754]
[1737328852829,0.099226,100780.0,100770.0,0.10949754]
[1737328852989,0.447596,100810.0,100780.0,0.198436]
[1737328853201,0.297597,100810.0,100790.0,0.19871254]
[1737328853504,0.099199,100810.0,100790.0,0.19871154]
[1737328853725,0.15090594,100830.0,100800.0,0.09949754]
[1737328853935,0.00090594,100830.0,100810.0,0.29788654]
[1737328854213,0.10058425,100830.0,100810.0,0.19869054]
[1737328854368,0.25140525,100830.0,100810.0,0.09949754]
[1737328854570,0.099186,100820.0,100810.0,0.09949754]
[1737328854973,0.198373,100820.0,100810.0,0.09949754]
[1737328855173,0.00140525,100830.0,100810.0,0.29787454]
[1737328855380,0.10058125,100830.0,100820.0,0.09949754]
[1737328855599,0.297563,100820.0,100810.0,0.09949754]
[1737328856417,0.1,100810.0,100770.0,0.01]
[1737328856619,0.099207,100800.0,100780.0,0.09949754]
[1737328856819,0.29762,100800.0,100780.0,0.19872254]
[1737328857036,0.099207,100800.0,100780.0,0.19872254]
[1737328857275,0.15,100820.0,100790.0,0.29792954]
[1737328857449,0.297562,100820.0,100800.0,0.39709854]
[1737328857656,0.495937,100820.0,100800.0,0.09949754]
[1737328857869,0.099196,100810.0,100800.0,0.09949754]
[1737328858081,0.495941,100820.0,100800.0,0.19870254]
[1737328858220,0.00140525,100830.0,100800.0,0.29789654]
[1737328858425,0.29893725,100830.0,100810.0,0.297579]
[1737328858669,0.00140525,100830.0,100820.0,0.09949754]
[1737328858870,0.00135605,100830.0,100820.0,0.19868354]
[1737328859052,0.00135605,100830.0,100820.0,0.22168354]
[1737328859255,0.297894,100860.0,100840.0,0.099165]
[1737328859455,0.09972474,100860.0,100850.0,0.09949754]
[1737328859658,0.34972474,100860.0,100850.0,0.09949754]
[1737328859823,0.25057774,100860.0,100810.0,0.198376]
[1737328860177,0.099169,100840.0,100820.0,0.39704454]
[1737328860521,0.495853,100840.0,100820.0,0.19868154]
[1737328860681,0.297506,100840.0,100820.0,0.39705354]
[1737328860855,0.099176,100830.0,100820.0,0.09949754]
[1737328861055,0.17875479,100860.0,100840.0,0.099165]
[1737328861056,0.29803974,100860.0,100840.0,0.099165]
[1737328861397,0.00057774,100860.0,100850.0,0.19865454]
[1737328861938,0.495687,100900.0,100870.0,0.19826]
[1737328862150,0.397393,100880.0,100870.0,0.09949754]
[1737328862298,0.34826,100880.0,100850.0,0.29746]
[1737328862497,0.349124,100890.0,100870.0,0.099136]
[1737328862696,0.59494252,100900.0,100880.0,0.09949754]
[1737328862899,0.00020952,100900.0,100880.0,0.29775054]
[1737328863104,0.00020952,100900.0,100890.0,0.22161454]
[1737328863328,0.01549978,100910.0,100890.0,0.22161454]
[1737328863329,0.01549978,100910.0,100900.0,0.099108]
[1737328863526,0.0004266,100920.0,100910.0,0.099098]
[1737328863751,0.0004266,100920.0,100910.0,0.19859554]
[1737328864162,0.0004266,100920.0,100910.0,0.37159554]
[1737328864320,0.0004266,100920.0,100910.0,0.22159554]
[1737328864519,0.0004266,100920.0,100910.0,0.09949754]
[1737328864736,0.0004266,100920.0,100910.0,0.19859554]
[1737328865139,0.19877904,100920.0,100910.0,0.09949754]
[1737328865778,0.5164308,100930.0,100910.0,0.09949754]
[1737328865987,0.000428,100940.0,100920.0,0.09949754]
[1737328866137,0.099078,100930.0,100920.0,0.09949754]
[1737328866367,0.199078,100930.0,100920.0,0.09949754]
[1737328866870,0.199078,100930.0,100860.0,0.08910479]
[1737328866871,0.25,100910.0,100860.0,0.08910479]
[1737328867083,0.199118,100890.0,100870.0,0.19863254]
[1737328867324,0.198228,100900.0,100870.0,0.29775954]
[1737328867453,0.099105,100910.0,100890.0,0.099117]
[1737328867653,0.199125,100890.0,100870.0,0.099131]
[1737328867857,0.199125,100890.0,100870.0,0.09949754]
[1737328867858,0.448247,100890.0,100870.0,0.09949754]
[1737328868185,0.496579,100870.0,100850.0,0.099151]
[1737328868397,0.099135,100880.0,100870.0,0.00014952]
[1737328868741,0.15,100920.0,100880.0,0.023]
[1737328869035,0.249092,100920.0,100900.0,0.39679954]
[1737328869272,0.547252,100930.0,100910.0,0.29729]
[1737328869482,0.547241,100930.0,100920.0,0.09949754]
[1737328869926,0.595803,100940.0,100920.0,0.09949754]
[1737328870089,0.297637,100940.0,100920.0,0.39674054]
[1737328870248,0.099078,100930.0,100920.0,0.19858554]
[1737328870427,0.199078,100930.0,100920.0,0.09949754]
[1737328870640,0.49628951,100940.0,100920.0,0.19858554]
[1737328870840,0.00092651,100940.0,100930.0,0.099078]
[1737328871057,0.09999451,100940.0,100930.0,0.09949754]
[1737328871261,0.099088,100920.0,100910.0,0.09909]
[1737328871469,0.547265,100920.0,100910.0,0.09949754]
[1737328871890,0.298207,100910.0,100880.0,0.099122]
[1737328872117,0.099108,100900.0,100890.0,0.09949754]
[1737328872339,0.349108,100900.0,100890.0,0.09949754]
[1737328872542,0.099129,100880.0,100860.0,0.198289]
[1737328872742,0.099127,100880.0,100870.0,0.09949754]
[1737328872947,0.297394,100880.0,100870.0,0.09949754]
[1737328873154,0.397394,100880.0,100870.0,0.09949754]
[1737328873326,0.547394,100880.0,100870.0,0.09964706]
[1737328873531,0.55937705,100910.0,100870.0,0.09964706]
[1737328873532,0.1,100910.0,100870.0,0.17544706]
[1737328873734,0.04531184,101060.0,101050.0,0.29896]
[1737328873937,0.00242321,101120.0,101080.0,0.09749584]
[1737328873938,0.01047826,101110.0,101080.0,0.09749584]
[1737328874197,0.00242321,101120.0,101110.0,0.19639784]
[1737328874366,0.00242321,101120.0,101110.0,0.29639784]
[1737328874568,0.00242321,101120.0,101110.0,0.44639784]
[1737328874716,0.00090132,101140.0,101130.0,0.098882]
[1737328874918,0.00090132,101140.0,101130.0,0.29395463]
[1737328875131,0.00140137,101140.0,101130.0,0.19507263]
[1737328875742,0.10027337,101140.0,101130.0,0.19507263]
[1737328876057,0.00140137,101140.0,101130.0,0.09757679]
[1737328876253,0.11462543,101140.0,101130.0,0.09749584]
[1737328876591,0.11462543,101140.0,101130.0,0.19707433]
[1737328876958,0.11462543,101140.0,101130.0,0.09757679]
[1737328876959,0.29280248,101140.0,101130.0,0.09757679]
[1737328877143,0.296655,101130.0,101120.0,0.09757679]
[1737328877364,0.197773,101130.0,101110.0,0.09749584]
[1737328877541,0.296652,101130.0,101120.0,0.09757679]
[1737328877740,0.098882,101130.0,101120.0,0.19707433]
[1737328877945,0.00140137,101140.0,101130.0,0.19637784]
[1737328878126,0.00140137,101140.0,101130.0,0.53845217]
[1737328878339,0.00140137,101140.0,101130.0,0.68845217]
[1737328878643,6e-05,101170.0,101160.0,0.19134884]
[1737328878844,6e-05,101170.0,101160.0,0.5370218]
[1737328878845,0.00020993,101170.0,101160.0,0.5370218]
[1737328879414,0.0201008,101190.0,101180.0,0.19132884]
[1737328879666,0.0201008,101190.0,101180.0,0.6370018]
[1737328880073,0.0201008,101190.0,101180.0,0.3870018]
[1737328880275,0.0201008,101190.0,101180.0,0.2881688]
[1737328880591,0.1189238,101190.0,101180.0,0.19567296]
[1737328880999,0.1189238,101190.0,101180.0,0.2881688]
[1737328881209,0.29710085,101190.0,101180.0,0.19567296]
[1737328881379,0.29710085,101190.0,101180.0,0.08675481]
[1737328881547,0.098833,101180.0,101170.0,0.08675481]
[1737328882357,0.29652,101180.0,101160.0,0.17925065]
[1737328882556,0.0201008,101190.0,101180.0,0.09249584]
[1737328882757,0.0201008,101190.0,101180.0,0.27874819]
[1737328883030,0.1189238,101190.0,101180.0,0.08675481]
[1737328883316,0.29710085,101190.0,101180.0,0.09675481]
[1737328883808,0.29710085,101190.0,101180.0,0.09425481]
[1737328884023,0.39659839,101190.0,101180.0,0.09425481]
[1737328884255,0.098853,101160.0,101150.0,0.00014993]
[1737328884490,0.27703005,101160.0,101150.0,0.00014993]
[1737328884690,0.17817705,101140.0,101120.0,0.09249584]
[1737328884893,0.098866,101150.0,101140.0,0.09249584]
[1737328885099,0.29675323,101150.0,101140.0,0.09949754]
[1737328885286,0.098901,101120.0,101100.0,0.09249584]
[1737328885406,0.098901,101120.0,101110.0,0.19199338]
[1737328885407,0.27707805,101120.0,101110.0,0.19199338]
[1737328885831,0.098902,101110.0,101100.0,0.09249584]
[1737328885995,0.098902,101110.0,101090.0,0.09249584]
[1737328885996,0.098911,101100.0,101090.0,0.09249584]
[1737328886204,0.098911,101100.0,101090.0,0.19199338]
[1737328886403,0.00750416,101140.0,101090.0,0.19199338]
[1737328886404,0.09949754,101150.0,101090.0,0.19199338]
[1737328886637,0.17817705,101170.0,101130.0,0.09249584]
[1737328886901,0.17817705,101170.0,101150.0,0.09249584]
[1737328887103,0.0201008,101190.0,101180.0,0.09249584]
[1737328887309,0.02025014,101190.0,101180.0,0.19199338]
[1737328887506,0.11907314,101190.0,101180.0,0.19199338]
[1737328887647,0.11907314,101190.0,101180.0,0.09949754]
[1737328888048,0.11907314,101190.0,101160.0,0.296553]
[1737328888049,0.098843,101170.0,101160.0,0.09249584]
[1737328888248,0.098843,101170.0,101160.0,0.09949754]
[1737328888460,0.21791414,101190.0,101160.0,0.19199338]
[1737328888663,0.31674614,101190.0,101170.0,0.09949754]
[1737328888865,0.098834,101180.0,101170.0,0.09949754]
[1737328889085,0.41557514,101190.0,101170.0,0.09949754]
[1737328889086,0.02025014,101190.0,101170.0,0.19199338]
[1737328889312,0.02025014,101190.0,101180.0,0.19199338]
[1737328889684,0.02025014,101190.0,101180.0,0.09949754]
[1737328889839,0.296508,101180.0,101160.0,0.09249584]
[1737328890039,0.098843,101170.0,101160.0,0.09949754]
[1737328890245,0.098843,101170.0,101160.0,0.0986663]
[1737328890444,0.098856,101160.0,101140.0,0.19136784]
[1737328890685,0.098856,101160.0,101150.0,0.09949754]
[1737328890910,0.197722,101160.0,101140.0,0.09949754]
[1737328891094,0.29658,101160.0,101140.0,0.19199338]
[1737328891297,0.04219272,101160.0,101140.0,0.19199338]
[1737328891462,0.098872,101140.0,101130.0,0.09249584]
[1737328891668,0.296602,101150.0,101130.0,0.19199338]
[1737328891920,0.098872,101140.0,101130.0,0.09949754]
[1737328892127,0.197758,101140.0,101110.0,0.19228571]
[1737328892365,0.098868,101150.0,101130.0,0.09949754]
[1737328892578,0.19773,101150.0,101130.0,0.09949754]
[1737328892787,0.39562123,101150.0,101130.0,0.09949754]
[1737328892988,0.39562123,101150.0,101110.0,0.19868287]
[1737328892989,0.197745,101140.0,101110.0,0.00089187]
[1737328893155,0.07924923,101150.0,101120.0,0.09949754]
[1737328893502,0.00014923,101150.0,101130.0,0.38911884]
[1737328893701,0.296625,101140.0,101130.0,0.09949754]
[1737328893900,0.00014923,101150.0,101130.0,0.68639338]
[1737328894048,0.00014923,101150.0,101140.0,0.29086538]
[1737328894406,0.00014923,101150.0,101140.0,0.69086538]
[1737328894628,0.00014923,101150.0,101140.0,0.61386538]
[1737328894771,0.00014923,101150.0,101140.0,0.71386538]
[1737328894995,0.28419416,101220.0,101140.0,0.71386538]